Workbook

Sheet Kniha jízd
B1: KNIHA JÍZD
C11: KILOMETRY | E11: ÚHRADA
C12: K ÚHRADĚ | E12: CELKEM
C17: 2012-05-01 | E17: 2012-05-10
C19: OBDOBÍ | E19: OBDOBÍ
C20: OD | E20: DO
C26: 54 | E26: 9,800
C28: CELKEM | E28: PŘEDCHOZÍ STAV
C29: Kč/km | E29: TACHOMETRU

Sheet Záznamy
B1: KNIHA JÍZD
B5: DATUM | C5: DŮVOD | D5: TACHOMETR 1 | E5: ODKUD | F5: TACHOMETR 2 | G5: KAM | H5: UHRADIT | I5: LITRŮ | J5: NÁKLADY | K5: K ÚHRADĚ | L5: KM/L | M5: KČ/KM | N5: POZNÁMKY
B6: 2012-05-01 | C6: Cesta | D6: 10,123 | E6: Praha - Wilsonova | F6: 10,130 | I6: 15.56 | J6: 64.11 Kč | K6: =km -> 7 | L6: =IF(OR(LEN(data[[#This Row],[TACHOMETR 2]]),data[[#This Row],[TACHOMETR 1]]=""),"",IFERROR(data[[#This Row],[K ÚHRADĚ]]/data[[#This Row],[LITRŮ]],"")) ->  | M6: =IF(data[[#This Row],[KM/L]]="","",100*data[[#This Row],[NÁKLADY]]/data[[#This Row],[K ÚHRADĚ]]) -> 
B7: 2012-05-01 | C7: Cesta | D7: 10,130 | E7: Kancelář | F7: 10,200 | G7: Žďárec | H7: Ano | K7: =km -> 70 | L7: =IF(OR(LEN(data[[#This Row],[TACHOMETR 2]]),data[[#This Row],[TACHOMETR 1]]=""),"",IFERROR(data[[#This Row],[K ÚHRADĚ]]/data[[#This Row],[LITRŮ]],"")) ->  | M7: =IF(data[[#This Row],[KM/L]]="","",100*data[[#This Row],[NÁKLADY]]/data[[#This Row],[K ÚHRADĚ]]) -> 
B8: 2012-05-01 | C8: Cesta | D8: 10,200 | E8: Liberec | F8: 10,285 | G8: Kancelář | H8: Ano | K8: =km -> 85 | L8: =IF(OR(LEN(data[[#This Row],[TACHOMETR 2]]),data[[#This Row],[TACHOMETR 1]]=""),"",IFERROR(data[[#This Row],[K ÚHRADĚ]]/data[[#This Row],[LITRŮ]],"")) ->  | M8: =IF(data[[#This Row],[KM/L]]="","",100*data[[#This Row],[NÁKLADY]]/data[[#This Row],[K ÚHRADĚ]]) -> 
B9: 2012-05-02 | C9: Cesta | D9: 10,285 | E9: Kancelář | F9: 10,450 | G9: Lhotka | H9: Ano | K9: =km -> 165 | L9: =IF(OR(LEN(data[[#This Row],[TACHOMETR 2]]),data[[#This Row],[TACHOMETR 1]]=""),"",IFERROR(data[[#This Row],[K ÚHRADĚ]]/data[[#This Row],[LITRŮ]],"")) ->  | M9: =IF(data[[#This Row],[KM/L]]="","",100*data[[#This Row],[NÁKLADY]]/data[[#This Row],[K ÚHRADĚ]]) -> 
B10: 2012-05-02 | C10: Tankování | D10: 10,450 | E10: Shell | I10: 11.20 | J10: 55.42 Kč | K10: =km -> 650 | L10: =IF(OR(LEN(data[[#This Row],[TACHOMETR 2]]),data[[#This Row],[TACHOMETR 1]]=""),"",IFERROR(data[[#This Row],[K ÚHRADĚ]]/data[[#This Row],[LITRŮ]],"")) -> 58.0 | M10: =IF(data[[#This Row],[KM/L]]="","",100*data[[#This Row],[NÁKLADY]]/data[[#This Row],[K ÚHRADĚ]]) -> 8.5
B11: 2012-05-02 | C11: Cesta | D11: 10,500 | E11: Lhotka | F11: 10,518 | G11: Kancelář | H11: Ano | K11: =km -> 18 | L11: =IF(OR(LEN(data[[#This Row],[TACHOMETR 2]]),data[[#This Row],[TACHOMETR 1]]=""),"",IFERROR(data[[#This Row],[K ÚHRADĚ]]/data[[#This Row],[LITRŮ]],"")) ->  | M11: =IF(data[[#This Row],[KM/L]]="","",100*data[[#This Row],[NÁKLADY]]/data[[#This Row],[K ÚHRADĚ]]) -> 
B12: 2012-05-03 | C12: Cesta | D12: 10,518 | E12: Kancelář | F12: 10,745 | G12: Kancelář | H12: Ano | K12: =km -> 227 | L12: =IF(OR(LEN(data[[#This Row],[TACHOMETR 2]]),data[[#This Row],[TACHOMETR 1]]=""),"",IFERROR(data[[#This Row],[K ÚHRADĚ]]/data[[#This Row],[LITRŮ]],"")) ->  | M12: =IF(data[[#This Row],[KM/L]]="","",100*data[[#This Row],[NÁKLADY]]/data[[#This Row],[K ÚHRADĚ]]) -> 
B13: 2012-05-04 | C13: Tankování | D13: 10,745 | E13: Praha - Wilsonova | I13: 16.60 | J13: 69.24 Kč | K13: =km -> 295 | L13: =IF(OR(LEN(data[[#This Row],[TACHOMETR 2]]),data[[#This Row],[TACHOMETR 1]]=""),"",IFERROR(data[[#This Row],[K ÚHRADĚ]]/data[[#This Row],[LITRŮ]],"")) -> 17.8 | M13: =IF(data[[#This Row],[KM/L]]="","",100*data[[#This Row],[NÁKLADY]]/data[[#This Row],[K ÚHRADĚ]]) -> 23.5
B14: 2012-05-04 | C14: Cesta | D14: 10,745 | E14: Kancelář | F14: 10,800 | G14: Humpolec | H14: Ano | K14: =km -> 55 | L14: =IF(OR(LEN(data[[#This Row],[TACHOMETR 2]]),data[[#This Row],[TACHOMETR 1]]=""),"",IFERROR(data[[#This Row],[K ÚHRADĚ]]/data[[#This Row],[LITRŮ]],"")) ->  | M14: =IF(data[[#This Row],[KM/L]]="","",100*data[[#This Row],[NÁKLADY]]/data[[#This Row],[K ÚHRADĚ]]) -> 
B15: 2012-05-04 | C15: Cesta | D15: 10,800 | E15: Humpolec | F15: 10,875 | G15: Kancelář | H15: Ano | K15: =km -> 75 | L15: =IF(OR(LEN(data[[#This Row],[TACHOMETR 2]]),data[[#This Row],[TACHOMETR 1]]=""),"",IFERROR(data[[#This Row],[K ÚHRADĚ]]/data[[#This Row],[LITRŮ]],"")) ->  | M15: =IF(data[[#This Row],[KM/L]]="","",100*data[[#This Row],[NÁKLADY]]/data[[#This Row],[K ÚHRADĚ]]) -> 
B16: 2012-05-07 | C16: Cesta | D16: 10,875 | E16: Kancelář | F16: 10,921 | G16: Žďárec | H16: Ano | K16: =km -> 46 | L16: =IF(OR(LEN(data[[#This Row],[TACHOMETR 2]]),data[[#This Row],[TACHOMETR 1]]=""),"",IFERROR(data[[#This Row],[K ÚHRADĚ]]/data[[#This Row],[LITRŮ]],"")) ->  | M16: =IF(data[[#This Row],[KM/L]]="","",100*data[[#This Row],[NÁKLADY]]/data[[#This Row],[K ÚHRADĚ]]) -> 
B17: 2012-05-07 | C17: Cesta | D17: 10,921 | E17: Liberec | F17: 10,969 | G17: Kancelář | H17: Ano | K17: =km -> 48 | L17: =IF(OR(LEN(data[[#This Row],[TACHOMETR 2]]),data[[#This Row],[TACHOMETR 1]]=""),"",IFERROR(data[[#This Row],[K ÚHRADĚ]]/data[[#This Row],[LITRŮ]],"")) ->  | M17: =IF(data[[#This Row],[KM/L]]="","",100*data[[#This Row],[NÁKLADY]]/data[[#This Row],[K ÚHRADĚ]]) -> 
B18: 2012-05-09 | C18: Cesta | D18: 10,969 | E18: Kancelář | F18: 11,000 | G18: Čáslav | H18: Ano | K18: =km -> 31 | L18: =IF(OR(LEN(data[[#This Row],[TACHOMETR 2]]),data[[#This Row],[TACHOMETR 1]]=""),"",IFERROR(data[[#This Row],[K ÚHRADĚ]]/data[[#This Row],[LITRŮ]],"")) ->  | M18: =IF(data[[#This Row],[KM/L]]="","",100*data[[#This Row],[NÁKLADY]]/data[[#This Row],[K ÚHRADĚ]]) -> 
B19: 2012-05-09 | C19: Cesta | D19: 11,000 | E19: Čáslav | F19: 11,100 | G19: Domov | H19: Ne | K19: =km -> 100 | L19: =IF(OR(LEN(data[[#This Row],[TACHOMETR 2]]),data[[#This Row],[TACHOMETR 1]]=""),"",IFERROR(data[[#This Row],[K ÚHRADĚ]]/data[[#This Row],[LITRŮ]],"")) ->  | M19: =IF(data[[#This Row],[KM/L]]="","",100*data[[#This Row],[NÁKLADY]]/data[[#This Row],[K ÚHRADĚ]]) -> 

Sheet výpočty (hidden)
A1: *** Skrýt tento list ***
I6: =OFFSET(I9,,DruháOsa="Náklady na palivo") -> Kč/km
M7: 2
H8: Cesta | I8: Tankování | J8: Tankování | L8: Druhá osa: | M8: =REPT("KM/L",M7=1)&REPT("Náklady na palivo",M7=2) -> Náklady na palivo
H9: Najeté kilometry | I9: KM/L | J9: Kč/km
C10: Km k úhradě: | D10: =SUMIFS(data[K ÚHRADĚ],data[UHRADIT],"Ano",data[DATUM],">="&obdobíZačátek,data[DATUM],"<="&obdobíKonec) -> 820 | F10: 1 | G10: =obdobíZačátek -> 2012-05-01 | H10: =SUMIFS(data[K ÚHRADĚ],data[DATUM],G10,data[DŮVOD],$H$8) -> 162 | I10: =IFERROR(AVERAGEIFS(data[KM/L],data[DATUM],G10,data[DŮVOD],$I$8),NA()) ->  | J10: =IFERROR(AVERAGEIFS(data[KČ/KM],data[DATUM],G10,data[DŮVOD],$J$8),NA()) -> 
C11: Celková úhrada: | D11: =D10*UhrazenoPerMile/100 -> 442.80 Kč | F11: 2 | G11: =G10+1 -> 2012-05-02 | H11: =SUMIFS(data[K ÚHRADĚ],data[DATUM],G11,data[DŮVOD],$H$8) -> 183 | I11: =IFERROR(AVERAGEIFS(data[KM/L],data[DATUM],G11,data[DŮVOD],$I$8),NA()) -> 58.0 | J11: =IFERROR(AVERAGEIFS(data[KČ/KM],data[DATUM],G11,data[DŮVOD],$J$8),NA()) -> 8.5
F12: 3 | G12: 2012-05-03 | H12: =SUMIFS(data[K ÚHRADĚ],data[DATUM],G12,data[DŮVOD],$H$8) -> 227 | I12: =IFERROR(AVERAGEIFS(data[KM/L],data[DATUM],G12,data[DŮVOD],$I$8),NA()) ->  | J12: =IFERROR(AVERAGEIFS(data[KČ/KM],data[DATUM],G12,data[DŮVOD],$J$8),NA()) -> 
F13: 4 | G13: 2012-05-04 | H13: =SUMIFS(data[K ÚHRADĚ],data[DATUM],G13,data[DŮVOD],$H$8) -> 130 | I13: =IFERROR(AVERAGEIFS(data[KM/L],data[DATUM],G13,data[DŮVOD],$I$8),NA()) -> 17.8 | J13: =IFERROR(AVERAGEIFS(data[KČ/KM],data[DATUM],G13,data[DŮVOD],$J$8),NA()) -> 23.5
F14: 5 | G14: 2012-05-05 | H14: =SUMIFS(data[K ÚHRADĚ],data[DATUM],G14,data[DŮVOD],$H$8) -> 0 | I14: =IFERROR(AVERAGEIFS(data[KM/L],data[DATUM],G14,data[DŮVOD],$I$8),NA()) ->  | J14: =IFERROR(AVERAGEIFS(data[KČ/KM],data[DATUM],G14,data[DŮVOD],$J$8),NA()) -> 
F15: 6 | G15: 2012-05-06 | H15: =SUMIFS(data[K ÚHRADĚ],data[DATUM],G15,data[DŮVOD],$H$8) -> 0 | I15: =IFERROR(AVERAGEIFS(data[KM/L],data[DATUM],G15,data[DŮVOD],$I$8),NA()) ->  | J15: =IFERROR(AVERAGEIFS(data[KČ/KM],data[DATUM],G15,data[DŮVOD],$J$8),NA()) -> 
F16: 7 | G16: 2012-05-07 | H16: =SUMIFS(data[K ÚHRADĚ],data[DATUM],G16,data[DŮVOD],$H$8) -> 94 | I16: =IFERROR(AVERAGEIFS(data[KM/L],data[DATUM],G16,data[DŮVOD],$I$8),NA()) ->  | J16: =IFERROR(AVERAGEIFS(data[KČ/KM],data[DATUM],G16,data[DŮVOD],$J$8),NA()) -> 
F17: 8 | G17: 2012-05-08 | H17: =SUMIFS(data[K ÚHRADĚ],data[DATUM],G17,data[DŮVOD],$H$8) -> 0 | I17: =IFERROR(AVERAGEIFS(data[KM/L],data[DATUM],G17,data[DŮVOD],$I$8),NA()) ->  | J17: =IFERROR(AVERAGEIFS(data[KČ/KM],data[DATUM],G17,data[DŮVOD],$J$8),NA()) -> 
F18: 9 | G18: 2012-05-09 | H18: =SUMIFS(data[K ÚHRADĚ],data[DATUM],G18,data[DŮVOD],$H$8) -> 131 | I18: =IFERROR(AVERAGEIFS(data[KM/L],data[DATUM],G18,data[DŮVOD],$I$8),NA()) ->  | J18: =IFERROR(AVERAGEIFS(data[KČ/KM],data[DATUM],G18,data[DŮVOD],$J$8),NA()) -> 
F19: 10 | G19: 2012-05-10 | H19: =SUMIFS(data[K ÚHRADĚ],data[DATUM],G19,data[DŮVOD],$H$8) -> 0 | I19: =IFERROR(AVERAGEIFS(data[KM/L],data[DATUM],G19,data[DŮVOD],$I$8),NA()) ->  | J19: =IFERROR(AVERAGEIFS(data[KČ/KM],data[DATUM],G19,data[DŮVOD],$J$8),NA()) -> 
F20: 11 | G20: 2012-05-11 | H20: =SUMIFS(data[K ÚHRADĚ],data[DATUM],G20,data[DŮVOD],$H$8) -> 0 | I20: =IFERROR(AVERAGEIFS(data[KM/L],data[DATUM],G20,data[DŮVOD],$I$8),NA()) ->  | J20: =IFERROR(AVERAGEIFS(data[KČ/KM],data[DATUM],G20,data[DŮVOD],$J$8),NA()) -> 
F21: 12 | G21: 2012-05-12 | H21: =SUMIFS(data[K ÚHRADĚ],data[DATUM],G21,data[DŮVOD],$H$8) -> 0 | I21: =IFERROR(AVERAGEIFS(data[KM/L],data[DATUM],G21,data[DŮVOD],$I$8),NA()) ->  | J21: =IFERROR(AVERAGEIFS(data[KČ/KM],data[DATUM],G21,data[DŮVOD],$J$8),NA()) -> 
F22: 13 | G22: 2012-05-13 | H22: =SUMIFS(data[K ÚHRADĚ],data[DATUM],G22,data[DŮVOD],$H$8) -> 0 | I22: =IFERROR(AVERAGEIFS(data[KM/L],data[DATUM],G22,data[DŮVOD],$I$8),NA()) ->  | J22: =IFERROR(AVERAGEIFS(data[KČ/KM],data[DATUM],G22,data[DŮVOD],$J$8),NA()) -> 
F23: 14 | G23: 2012-05-14 | H23: =SUMIFS(data[K ÚHRADĚ],data[DATUM],G23,data[DŮVOD],$H$8) -> 0 | I23: =IFERROR(AVERAGEIFS(data[KM/L],data[DATUM],G23,data[DŮVOD],$I$8),NA()) ->  | J23: =IFERROR(AVERAGEIFS(data[KČ/KM],data[DATUM],G23,data[DŮVOD],$J$8),NA()) -> 
F24: 15 | G24: 2012-05-15 | H24: =SUMIFS(data[K ÚHRADĚ],data[DATUM],G24,data[DŮVOD],$H$8) -> 0 | I24: =IFERROR(AVERAGEIFS(data[KM/L],data[DATUM],G24,data[DŮVOD],$I$8),NA()) ->  | J24: =IFERROR(AVERAGEIFS(data[KČ/KM],data[DATUM],G24,data[DŮVOD],$J$8),NA()) -> 
F25: 16 | G25: 2012-05-16 | H25: =SUMIFS(data[K ÚHRADĚ],data[DATUM],G25,data[DŮVOD],$H$8) -> 0 | I25: =IFERROR(AVERAGEIFS(data[KM/L],data[DATUM],G25,data[DŮVOD],$I$8),NA()) ->  | J25: =IFERROR(AVERAGEIFS(data[KČ/KM],data[DATUM],G25,data[DŮVOD],$J$8),NA()) -> 
F26: 17 | G26: 2012-05-17 | H26: =SUMIFS(data[K ÚHRADĚ],data[DATUM],G26,data[DŮVOD],$H$8) -> 0 | I26: =IFERROR(AVERAGEIFS(data[KM/L],data[DATUM],G26,data[DŮVOD],$I$8),NA()) ->  | J26: =IFERROR(AVERAGEIFS(data[KČ/KM],data[DATUM],G26,data[DŮVOD],$J$8),NA()) -> 
F27: 18 | G27: 2012-05-18 | H27: =SUMIFS(data[K ÚHRADĚ],data[DATUM],G27,data[DŮVOD],$H$8) -> 0 | I27: =IFERROR(AVERAGEIFS(data[KM/L],data[DATUM],G27,data[DŮVOD],$I$8),NA()) ->  | J27: =IFERROR(AVERAGEIFS(data[KČ/KM],data[DATUM],G27,data[DŮVOD],$J$8),NA()) -> 
F28: 19 | G28: 2012-05-19 | H28: =SUMIFS(data[K ÚHRADĚ],data[DATUM],G28,data[DŮVOD],$H$8) -> 0 | I28: =IFERROR(AVERAGEIFS(data[KM/L],data[DATUM],G28,data[DŮVOD],$I$8),NA()) ->  | J28: =IFERROR(AVERAGEIFS(data[KČ/KM],data[DATUM],G28,data[DŮVOD],$J$8),NA()) -> 
F29: 20 | G29: 2012-05-20 | H29: =SUMIFS(data[K ÚHRADĚ],data[DATUM],G29,data[DŮVOD],$H$8) -> 0 | I29: =IFERROR(AVERAGEIFS(data[KM/L],data[DATUM],G29,data[DŮVOD],$I$8),NA()) ->  | J29: =IFERROR(AVERAGEIFS(data[KČ/KM],data[DATUM],G29,data[DŮVOD],$J$8),NA()) -> 
F30: 21 | G30: 2012-05-21 | H30: =SUMIFS(data[K ÚHRADĚ],data[DATUM],G30,data[DŮVOD],$H$8) -> 0 | I30: =IFERROR(AVERAGEIFS(data[KM/L],data[DATUM],G30,data[DŮVOD],$I$8),NA()) ->  | J30: =IFERROR(AVERAGEIFS(data[KČ/KM],data[DATUM],G30,data[DŮVOD],$J$8),NA()) -> 
F31: 22 | G31: 2012-05-22 | H31: =SUMIFS(data[K ÚHRADĚ],data[DATUM],G31,data[DŮVOD],$H$8) -> 0 | I31: =IFERROR(AVERAGEIFS(data[KM/L],data[DATUM],G31,data[DŮVOD],$I$8),NA()) ->  | J31: =IFERROR(AVERAGEIFS(data[KČ/KM],data[DATUM],G31,data[DŮVOD],$J$8),NA()) -> 
F32: 23 | G32: 2012-05-23 | H32: =SUMIFS(data[K ÚHRADĚ],data[DATUM],G32,data[DŮVOD],$H$8) -> 0 | I32: =IFERROR(AVERAGEIFS(data[KM/L],data[DATUM],G32,data[DŮVOD],$I$8),NA()) ->  | J32: =IFERROR(AVERAGEIFS(data[KČ/KM],data[DATUM],G32,data[DŮVOD],$J$8),NA()) -> 
F33: 24 | G33: 2012-05-24 | H33: =SUMIFS(data[K ÚHRADĚ],data[DATUM],G33,data[DŮVOD],$H$8) -> 0 | I33: =IFERROR(AVERAGEIFS(data[KM/L],data[DATUM],G33,data[DŮVOD],$I$8),NA()) ->  | J33: =IFERROR(AVERAGEIFS(data[KČ/KM],data[DATUM],G33,data[DŮVOD],$J$8),NA()) -> 
F34: 25 | G34: 2012-05-25 | H34: =SUMIFS(data[K ÚHRADĚ],data[DATUM],G34,data[DŮVOD],$H$8) -> 0 | I34: =IFERROR(AVERAGEIFS(data[KM/L],data[DATUM],G34,data[DŮVOD],$I$8),NA()) ->  | J34: =IFERROR(AVERAGEIFS(data[KČ/KM],data[DATUM],G34,data[DŮVOD],$J$8),NA()) -> 
F35: 26 | G35: 2012-05-26 | H35: =SUMIFS(data[K ÚHRADĚ],data[DATUM],G35,data[DŮVOD],$H$8) -> 0 | I35: =IFERROR(AVERAGEIFS(data[KM/L],data[DATUM],G35,data[DŮVOD],$I$8),NA()) ->  | J35: =IFERROR(AVERAGEIFS(data[KČ/KM],data[DATUM],G35,data[DŮVOD],$J$8),NA()) -> 
F36: 27 | G36: 2012-05-27 | H36: =SUMIFS(data[K ÚHRADĚ],data[DATUM],G36,data[DŮVOD],$H$8) -> 0 | I36: =IFERROR(AVERAGEIFS(data[KM/L],data[DATUM],G36,data[DŮVOD],$I$8),NA()) ->  | J36: =IFERROR(AVERAGEIFS(data[KČ/KM],data[DATUM],G36,data[DŮVOD],$J$8),NA()) -> 
F37: 28 | G37: 2012-05-28 | H37: =SUMIFS(data[K ÚHRADĚ],data[DATUM],G37,data[DŮVOD],$H$8) -> 0 | I37: =IFERROR(AVERAGEIFS(data[KM/L],data[DATUM],G37,data[DŮVOD],$I$8),NA()) ->  | J37: =IFERROR(AVERAGEIFS(data[KČ/KM],data[DATUM],G37,data[DŮVOD],$J$8),NA()) -> 
F38: 29 | G38: 2012-05-29 | H38: =SUMIFS(data[K ÚHRADĚ],data[DATUM],G38,data[DŮVOD],$H$8) -> 0 | I38: =IFERROR(AVERAGEIFS(data[KM/L],data[DATUM],G38,data[DŮVOD],$I$8),NA()) ->  | J38: =IFERROR(AVERAGEIFS(data[KČ/KM],data[DATUM],G38,data[DŮVOD],$J$8),NA()) -> 
F39: 30 | G39: 2012-05-30 | H39: =SUMIFS(data[K ÚHRADĚ],data[DATUM],G39,data[DŮVOD],$H$8) -> 0 | I39: =IFERROR(AVERAGEIFS(data[KM/L],data[DATUM],G39,data[DŮVOD],$I$8),NA()) ->  | J39: =IFERROR(AVERAGEIFS(data[KČ/KM],data[DATUM],G39,data[DŮVOD],$J$8),NA()) -> 
F40: 31 | G40: 2012-05-31 | H40: =SUMIFS(data[K ÚHRADĚ],data[DATUM],G40,data[DŮVOD],$H$8) -> 0 | I40: =IFERROR(AVERAGEIFS(data[KM/L],data[DATUM],G40,data[DŮVOD],$I$8),NA()) ->  | J40: =IFERROR(AVERAGEIFS(data[KČ/KM],data[DATUM],G40,data[DŮVOD],$J$8),NA()) -> 
F41: 32 | G41: 2012-06-01 | H41: =SUMIFS(data[K ÚHRADĚ],data[DATUM],G41,data[DŮVOD],$H$8) -> 0 | I41: =IFERROR(AVERAGEIFS(data[KM/L],data[DATUM],G41,data[DŮVOD],$I$8),NA()) ->  | J41: =IFERROR(AVERAGEIFS(data[KČ/KM],data[DATUM],G41,data[DŮVOD],$J$8),NA()) -> 
F42: 33 | G42: 2012-06-02 | H42: =SUMIFS(data[K ÚHRADĚ],data[DATUM],G42,data[DŮVOD],$H$8) -> 0 | I42: =IFERROR(AVERAGEIFS(data[KM/L],data[DATUM],G42,data[DŮVOD],$I$8),NA()) ->  | J42: =IFERROR(AVERAGEIFS(data[KČ/KM],data[DATUM],G42,data[DŮVOD],$J$8),NA()) -> 
F43: 34 | G43: =G42+1 -> 2012-06-03 | H43: =SUMIFS(data[K ÚHRADĚ],data[DATUM],G43,data[DŮVOD],$H$8) -> 0 | I43: =IFERROR(AVERAGEIFS(data[KM/L],data[DATUM],G43,data[DŮVOD],$I$8),NA()) ->  | J43: =IFERROR(AVERAGEIFS(data[KČ/KM],data[DATUM],G43,data[DŮVOD],$J$8),NA()) -> 
F44: 35 | G44: 2012-06-04 | H44: =SUMIFS(data[K ÚHRADĚ],data[DATUM],G44,data[DŮVOD],$H$8) -> 0 | I44: =IFERROR(AVERAGEIFS(data[KM/L],data[DATUM],G44,data[DŮVOD],$I$8),NA()) ->  | J44: =IFERROR(AVERAGEIFS(data[KČ/KM],data[DATUM],G44,data[DŮVOD],$J$8),NA()) -> 
F45: 36 | G45: 2012-06-05 | H45: =SUMIFS(data[K ÚHRADĚ],data[DATUM],G45,data[DŮVOD],$H$8) -> 0 | I45: =IFERROR(AVERAGEIFS(data[KM/L],data[DATUM],G45,data[DŮVOD],$I$8),NA()) ->  | J45: =IFERROR(AVERAGEIFS(data[KČ/KM],data[DATUM],G45,data[DŮVOD],$J$8),NA()) -> 
F46: 37 | G46: 2012-06-06 | H46: =SUMIFS(data[K ÚHRADĚ],data[DATUM],G46,data[DŮVOD],$H$8) -> 0 | I46: =IFERROR(AVERAGEIFS(data[KM/L],data[DATUM],G46,data[DŮVOD],$I$8),NA()) ->  | J46: =IFERROR(AVERAGEIFS(data[KČ/KM],data[DATUM],G46,data[DŮVOD],$J$8),NA()) -> 
F47: 38 | G47: 2012-06-07 | H47: =SUMIFS(data[K ÚHRADĚ],data[DATUM],G47,data[DŮVOD],$H$8) -> 0 | I47: =IFERROR(AVERAGEIFS(data[KM/L],data[DATUM],G47,data[DŮVOD],$I$8),NA()) ->  | J47: =IFERROR(AVERAGEIFS(data[KČ/KM],data[DATUM],G47,data[DŮVOD],$J$8),NA()) -> 
F48: 39 | G48: 2012-06-08 | H48: =SUMIFS(data[K ÚHRADĚ],data[DATUM],G48,data[DŮVOD],$H$8) -> 0 | I48: =IFERROR(AVERAGEIFS(data[KM/L],data[DATUM],G48,data[DŮVOD],$I$8),NA()) ->  | J48: =IFERROR(AVERAGEIFS(data[KČ/KM],data[DATUM],G48,data[DŮVOD],$J$8),NA()) -> 
F49: 40 | G49: 2012-06-09 | H49: =SUMIFS(data[K ÚHRADĚ],data[DATUM],G49,data[DŮVOD],$H$8) -> 0 | I49: =IFERROR(AVERAGEIFS(data[KM/L],data[DATUM],G49,data[DŮVOD],$I$8),NA()) ->  | J49: =IFERROR(AVERAGEIFS(data[KČ/KM],data[DATUM],G49,data[DŮVOD],$J$8),NA()) -> 
F50: 41 | G50: 2012-06-10 | H50: =SUMIFS(data[K ÚHRADĚ],data[DATUM],G50,data[DŮVOD],$H$8) -> 0 | I50: =IFERROR(AVERAGEIFS(data[KM/L],data[DATUM],G50,data[DŮVOD],$I$8),NA()) ->  | J50: =IFERROR(AVERAGEIFS(data[KČ/KM],data[DATUM],G50,data[DŮVOD],$J$8),NA()) -> 
F51: 42 | G51: 2012-06-11 | H51: =SUMIFS(data[K ÚHRADĚ],data[DATUM],G51,data[DŮVOD],$H$8) -> 0 | I51: =IFERROR(AVERAGEIFS(data[KM/L],data[DATUM],G51,data[DŮVOD],$I$8),NA()) ->  | J51: =IFERROR(AVERAGEIFS(data[KČ/KM],data[DATUM],G51,data[DŮVOD],$J$8),NA()) -> 
F52: 43 | G52: 2012-06-12 | H52: =SUMIFS(data[K ÚHRADĚ],data[DATUM],G52,data[DŮVOD],$H$8) -> 0 | I52: =IFERROR(AVERAGEIFS(data[KM/L],data[DATUM],G52,data[DŮVOD],$I$8),NA()) ->  | J52: =IFERROR(AVERAGEIFS(data[KČ/KM],data[DATUM],G52,data[DŮVOD],$J$8),NA()) -> 
F53: 44 | G53: 2012-06-13 | H53: =SUMIFS(data[K ÚHRADĚ],data[DATUM],G53,data[DŮVOD],$H$8) -> 0 | I53: =IFERROR(AVERAGEIFS(data[KM/L],data[DATUM],G53,data[DŮVOD],$I$8),NA()) ->  | J53: =IFERROR(AVERAGEIFS(data[KČ/KM],data[DATUM],G53,data[DŮVOD],$J$8),NA()) -> 
F54: 45 | G54: 2012-06-14 | H54: =SUMIFS(data[K ÚHRADĚ],data[DATUM],G54,data[DŮVOD],$H$8) -> 0 | I54: =IFERROR(AVERAGEIFS(data[KM/L],data[DATUM],G54,data[DŮVOD],$I$8),NA()) ->  | J54: =IFERROR(AVERAGEIFS(data[KČ/KM],data[DATUM],G54,data[DŮVOD],$J$8),NA()) -> 
F55: 46 | G55: 2012-06-15 | H55: =SUMIFS(data[K ÚHRADĚ],data[DATUM],G55,data[DŮVOD],$H$8) -> 0 | I55: =IFERROR(AVERAGEIFS(data[KM/L],data[DATUM],G55,data[DŮVOD],$I$8),NA()) ->  | J55: =IFERROR(AVERAGEIFS(data[KČ/KM],data[DATUM],G55,data[DŮVOD],$J$8),NA()) -> 
F56: 47 | G56: 2012-06-16 | H56: =SUMIFS(data[K ÚHRADĚ],data[DATUM],G56,data[DŮVOD],$H$8) -> 0 | I56: =IFERROR(AVERAGEIFS(data[KM/L],data[DATUM],G56,data[DŮVOD],$I$8),NA()) ->  | J56: =IFERROR(AVERAGEIFS(data[KČ/KM],data[DATUM],G56,data[DŮVOD],$J$8),NA()) -> 
F57: 48 | G57: 2012-06-17 | H57: =SUMIFS(data[K ÚHRADĚ],data[DATUM],G57,data[DŮVOD],$H$8) -> 0 | I57: =IFERROR(AVERAGEIFS(data[KM/L],data[DATUM],G57,data[DŮVOD],$I$8),NA()) ->  | J57: =IFERROR(AVERAGEIFS(data[KČ/KM],data[DATUM],G57,data[DŮVOD],$J$8),NA()) -> 
F58: 49 | G58: 2012-06-18 | H58: =SUMIFS(data[K ÚHRADĚ],data[DATUM],G58,data[DŮVOD],$H$8) -> 0 | I58: =IFERROR(AVERAGEIFS(data[KM/L],data[DATUM],G58,data[DŮVOD],$I$8),NA()) ->  | J58: =IFERROR(AVERAGEIFS(data[KČ/KM],data[DATUM],G58,data[DŮVOD],$J$8),NA()) -> 
F59: 50 | G59: 2012-06-19 | H59: =SUMIFS(data[K ÚHRADĚ],data[DATUM],G59,data[DŮVOD],$H$8) -> 0 | I59: =IFERROR(AVERAGEIFS(data[KM/L],data[DATUM],G59,data[DŮVOD],$I$8),NA()) ->  | J59: =IFERROR(AVERAGEIFS(data[KČ/KM],data[DATUM],G59,data[DŮVOD],$J$8),NA()) -> 
F60: 51 | G60: 2012-06-20 | H60: =SUMIFS(data[K ÚHRADĚ],data[DATUM],G60,data[DŮVOD],$H$8) -> 0 | I60: =IFERROR(AVERAGEIFS(data[KM/L],data[DATUM],G60,data[DŮVOD],$I$8),NA()) ->  | J60: =IFERROR(AVERAGEIFS(data[KČ/KM],data[DATUM],G60,data[DŮVOD],$J$8),NA()) -> 
F61: 52 | G61: 2012-06-21 | H61: =SUMIFS(data[K ÚHRADĚ],data[DATUM],G61,data[DŮVOD],$H$8) -> 0 | I61: =IFERROR(AVERAGEIFS(data[KM/L],data[DATUM],G61,data[DŮVOD],$I$8),NA()) ->  | J61: =IFERROR(AVERAGEIFS(data[KČ/KM],data[DATUM],G61,data[DŮVOD],$J$8),NA()) -> 
F62: 53 | G62: 2012-06-22 | H62: =SUMIFS(data[K ÚHRADĚ],data[DATUM],G62,data[DŮVOD],$H$8) -> 0 | I62: =IFERROR(AVERAGEIFS(data[KM/L],data[DATUM],G62,data[DŮVOD],$I$8),NA()) ->  | J62: =IFERROR(AVERAGEIFS(data[KČ/KM],data[DATUM],G62,data[DŮVOD],$J$8),NA()) -> 
F63: 54 | G63: 2012-06-23 | H63: =SUMIFS(data[K ÚHRADĚ],data[DATUM],G63,data[DŮVOD],$H$8) -> 0 | I63: =IFERROR(AVERAGEIFS(data[KM/L],data[DATUM],G63,data[DŮVOD],$I$8),NA()) ->  | J63: =IFERROR(AVERAGEIFS(data[KČ/KM],data[DATUM],G63,data[DŮVOD],$J$8),NA()) -> 
F64: 55 | G64: 2012-06-24 | H64: =SUMIFS(data[K ÚHRADĚ],data[DATUM],G64,data[DŮVOD],$H$8) -> 0 | I64: =IFERROR(AVERAGEIFS(data[KM/L],data[DATUM],G64,data[DŮVOD],$I$8),NA()) ->  | J64: =IFERROR(AVERAGEIFS(data[KČ/KM],data[DATUM],G64,data[DŮVOD],$J$8),NA()) -> 
F65: 56 | G65: 2012-06-25 | H65: =SUMIFS(data[K ÚHRADĚ],data[DATUM],G65,data[DŮVOD],$H$8) -> 0 | I65: =IFERROR(AVERAGEIFS(data[KM/L],data[DATUM],G65,data[DŮVOD],$I$8),NA()) ->  | J65: =IFERROR(AVERAGEIFS(data[KČ/KM],data[DATUM],G65,data[DŮVOD],$J$8),NA()) -> 
F66: 57 | G66: 2012-06-26 | H66: =SUMIFS(data[K ÚHRADĚ],data[DATUM],G66,data[DŮVOD],$H$8) -> 0 | I66: =IFERROR(AVERAGEIFS(data[KM/L],data[DATUM],G66,data[DŮVOD],$I$8),NA()) ->  | J66: =IFERROR(AVERAGEIFS(data[KČ/KM],data[DATUM],G66,data[DŮVOD],$J$8),NA()) -> 
F67: 58 | G67: 2012-06-27 | H67: =SUMIFS(data[K ÚHRADĚ],data[DATUM],G67,data[DŮVOD],$H$8) -> 0 | I67: =IFERROR(AVERAGEIFS(data[KM/L],data[DATUM],G67,data[DŮVOD],$I$8),NA()) ->  | J67: =IFERROR(AVERAGEIFS(data[KČ/KM],data[DATUM],G67,data[DŮVOD],$J$8),NA()) -> 
F68: 59 | G68: 2012-06-28 | H68: =SUMIFS(data[K ÚHRADĚ],data[DATUM],G68,data[DŮVOD],$H$8) -> 0 | I68: =IFERROR(AVERAGEIFS(data[KM/L],data[DATUM],G68,data[DŮVOD],$I$8),NA()) ->  | J68: =IFERROR(AVERAGEIFS(data[KČ/KM],data[DATUM],G68,data[DŮVOD],$J$8),NA()) -> 
F69: 60 | G69: 2012-06-29 | H69: =SUMIFS(data[K ÚHRADĚ],data[DATUM],G69,data[DŮVOD],$H$8) -> 0 | I69: =IFERROR(AVERAGEIFS(data[KM/L],data[DATUM],G69,data[DŮVOD],$I$8),NA()) ->  | J69: =IFERROR(AVERAGEIFS(data[KČ/KM],data[DATUM],G69,data[DŮVOD],$J$8),NA()) -> 
